bitfinex/quotes_BTCUSD_20240719
["timestamp","ask_amount","ask_price","bid_price","bid_amount"]
[1721360606459,0.77685933,64446.0,64445.0,0.1309018]
[1721360607060,0.77685933,64446.0,64445.0,0.13090506]
[1721360607532,0.46652233,64446.0,64445.0,0.1309053]
[1721360608130,0.77685933,64446.0,64445.0,0.1309053]
[1721360608332,0.00101733,64446.0,64445.0,0.28528704]
[1721360608629,0.15618533,64446.0,64445.0,0.28528704]
[1721360608781,0.77685933,64446.0,64445.0,0.1309053]
[1721360609603,1.08719633,64446.0,64445.0,0.1309053]
[1721360609796,1.14999633,64446.0,64445.0,0.1309053]
[1721360610002,1.23219633,64446.0,64445.0,0.1309053]
[1721360610258,1.45449633,64446.0,64445.0,0.1309053]
[1721360610414,1.91908466,64446.0,64445.0,0.002]
[1721360610617,1.45449633,64446.0,64445.0,0.002]
[1721360612323,1.45449633,64446.0,64445.0,0.001]
[1721360612669,1.45949633,64446.0,64445.0,0.002]
[1721360613617,1.45949633,64446.0,64445.0,0.001]
[1721360614239,1.66387807,64446.0,64445.0,0.001]
[1721360614643,1.45949633,64446.0,64445.0,0.001]
[1721360614821,1.50584357,64446.0,64445.0,0.001]
[1721360615454,1.45930956,64446.0,64445.0,0.001]
[1721360615827,1.55238932,64446.0,64445.0,0.001]
[1721360616134,1.45930956,64446.0,64445.0,0.001]
[1721360616336,1.35335926,64446.0,64445.0,0.001]
[1721360616543,1.23700956,64446.0,64445.0,0.001]
[1721360616747,0.05235035,64446.0,64445.0,0.15538174]
[1721360616961,0.00583056,64446.0,64445.0,0.31055274]
[1721360617145,0.00583056,64446.0,64445.0,0.62089474]
[1721360618014,0.00583056,64446.0,64445.0,0.69806953]
[1721360618239,0.00083056,64446.0,64445.0,0.69706953]
[1721360618665,0.00083056,64446.0,64445.0,1.01941153]
[1721360618865,0.00083056,64446.0,64445.0,0.94223674]
[1721360619067,0.00083056,64446.0,64445.0,0.93723674]
[1721360619443,0.00083056,64446.0,64445.0,0.94423674]
[1721360620009,0.00083056,64446.0,64445.0,0.93723674]
[1721360620220,0.00083056,64446.0,64445.0,0.94523674]
[1721360620511,0.00083056,64446.0,64445.0,0.93823674]
[1721360620687,0.00083056,64446.0,64445.0,0.94623674]
[1721360621110,0.15599856,64446.0,64445.0,0.016]
[1721360621307,0.15599856,64446.0,64445.0,0.008]
[1721360621488,0.00083056,64446.0,64445.0,0.008]
[1721360621709,0.15599856,64446.0,64445.0,0.008]
[1721360621909,0.46633556,64446.0,64445.0,0.008]
[1721360622273,0.46633556,64446.0,64445.0,0.016]
[1721360622481,0.46633556,64446.0,64445.0,0.008]
[1721360622936,0.77667256,64446.0,64445.0,0.008]
[1721360623174,0.77667256,64446.0,64445.0,0.016]
[1721360623380,1.15678537,64446.0,64445.0,0.008]
[1721360623730,1.086246,64442.0,64441.0,0.014816]
[1721360623945,1.22222618,64442.0,64441.0,0.014816]
[1721360624149,1.462802,64442.0,64441.0,0.014816]
[1721360624352,1.57909501,64442.0,64441.0,0.014816]
[1721360624527,1.595002,64442.0,64441.0,0.014816]
[1721360624732,1.545002,64442.0,64441.0,0.014816]
[1721360624932,1.88893536,64442.0,64441.0,0.026816]
[1721360625314,1.88893536,64442.0,64431.0,0.002]
[1721360625315,1.086414,64432.0,64431.0,0.002]
[1721360625518,1.15618744,64432.0,64431.0,0.002]
[1721360625889,0.917292,64417.0,64416.0,0.002794]
[1721360626093,0.917292,64417.0,64401.0,0.0603]
[1721360626094,0.77624,64413.0,64412.0,0.002794]
[1721360626300,0.15525,64412.0,64402.0,0.002794]
[1721360626504,0.465751,64412.0,64402.0,0.313343]
[1721360626707,0.465751,64412.0,64404.0,0.155269]
[1721360626875,0.465751,64412.0,64405.0,0.002794]
[1721360627077,0.465751,64412.0,64403.0,0.23244579]
[1721360627400,0.465751,64412.0,64404.0,0.155269]
[1721360627824,0.465751,64412.0,64403.0,0.23244679]
[1721360628029,0.466751,64412.0,64404.0,0.002794]
[1721360628370,0.465751,64412.0,64404.0,0.002794]
[1721360628573,0.776252,64412.0,64401.0,0.0603]
[1721360628716,0.777252,64412.0,64402.0,0.002794]
[1721360629139,0.777252,64412.0,64400.0,0.002794]
[1721360629337,0.777252,64412.0,64400.0,0.158073]
[1721360629704,0.777252,64412.0,64401.0,0.002794]
[1721360629874,0.779252,64412.0,64401.0,0.002794]
[1721360630114,0.467751,64412.0,64404.0,0.155267]
[1721360630248,0.006,64412.0,64411.0,0.15638174]
[1721360630454,0.16125,64412.0,64411.0,0.15638174]
[1721360630654,0.006,64412.0,64411.0,0.15638174]
[1721360631040,0.155242,64416.0,64411.0,0.31163374]
[1721360631241,0.155242,64416.0,64412.0,0.15438174]
[1721360631441,0.310475,64418.0,64413.0,0.002794]
[1721360631651,0.155231,64420.0,64414.0,0.30962574]
[1721360631853,0.310429,64427.0,64419.0,0.155231]
[1721360632073,0.19033561,64430.0,64420.0,0.15438174]
[1721360632074,0.155223,64424.0,64420.0,0.15438174]
[1721360632276,0.155223,64424.0,64421.0,0.002794]
[1721360632578,0.155204,64431.0,64425.0,0.155218]
[1721360632808,0.1439,64439.0,64426.0,0.15438174]
[1721360633027,0.155193,64436.0,64428.0,0.310423]
[1721360633228,0.155193,64436.0,64431.0,0.155204]
[1721360633444,0.310369,64440.0,64432.0,0.31237674]
[1721360633445,0.15519,64437.0,64432.0,0.31237674]
[1721360633667,0.310369,64440.0,64432.0,0.15438174]
[1721360633866,0.155197,64434.0,64433.0,0.002794]
[1721360634043,0.155205,64431.0,64426.0,0.156216]
[1721360634246,0.155205,64431.0,64427.0,0.15717574]
[1721360634495,0.005,64436.0,64431.0,0.310408]
[1721360634726,0.004,64437.0,64433.0,0.155198]
[1721360634845,0.155185,64439.0,64434.0,0.30957674]
[1721360635053,0.310362,64441.0,64434.0,0.15438174]
[1721360635260,0.155188,64438.0,64434.0,0.15438174]
[1721360635707,0.155183,64440.0,64434.0,0.30957774]
[1721360635942,0.310358,64442.0,64435.0,0.002794]
[1721360636144,0.3662,64445.0,64435.0,0.002794]
[1721360636145,0.3662,64445.0,64435.0,0.15717574]
[1721360636332,0.155191,64437.0,64435.0,0.15438174]
[1721360636545,0.676545,64445.0,64435.0,0.15438174]
[1721360636749,0.155185,64439.0,64436.0,0.002794]
[1721360637077,0.155185,64439.0,64437.0,0.15438174]
[1721360638087,0.156185,64439.0,64437.0,0.15438174]
[1721360638235,0.155187,64438.0,64437.0,0.15438174]
[1721360638436,0.157186,64439.0,64437.0,0.15438174]
[1721360639062,0.002,64439.0,64438.0,0.155187]
[1721360639238,0.310344,64445.0,64438.0,0.15717574]
[1721360639460,0.310344,64445.0,64439.0,0.15438174]
[1721360639876,0.310354,64443.0,64439.0,0.15438174]
[1721360640639,0.310357,64442.0,64424.0,0.0647]
[1721360640847,0.1552,64433.0,64429.0,0.15717574]
[1721360640971,0.1552,64433.0,64429.0,0.15438174]
[1721360641176,0.155196,64435.0,64429.0,0.15438174]
[1721360641379,0.155192,64437.0,64430.0,0.155205]
[1721360641580,0.155193,64436.0,64431.0,0.15438174]
[1721360641781,0.38755579,64437.0,64431.0,0.15438174]
[1721360642009,0.465606,64432.0,64431.0,0.15438174]
[1721360642208,0.155202,64432.0,64431.0,0.15438174]
[1721360642384,0.310384,64437.0,64431.0,0.15438174]
[1721360642385,0.155199,64434.0,64431.0,0.15438174]
[1721360643151,0.543074,64439.0,64431.0,0.15438174]
[1721360643152,0.15,64439.0,64438.0,0.310375]
[1721360643595,0.15,64439.0,64438.0,0.93031874]
[1721360643785,0.15,64439.0,64438.0,0.61994374]
[1721360644273,0.15,64439.0,64438.0,0.93031874]
[1721360644677,0.15,64439.0,64438.0,0.93731874]
[1721360645460,0.15,64439.0,64438.0,1.24769374]
[1721360645913,0.15,64439.0,64438.0,1.24069374]
[1721360646128,0.15,64439.0,64438.0,0.93531874]
[1721360646324,0.151,64439.0,64438.0,0.94231874]
[1721360646533,0.151,64439.0,64438.0,0.93731874]
[1721360646727,0.15,64439.0,64438.0,0.93031874]
[1721360646926,0.15,64439.0,64438.0,0.94431874]
[1721360647128,0.151,64439.0,64438.0,0.93831874]
[1721360647556,0.151,64439.0,64438.0,0.94831874]
[1721360647702,0.15,64439.0,64438.0,0.94031874]
[1721360647907,0.15,64439.0,64438.0,1.25069374]
[1721360648332,0.15,64439.0,64438.0,0.94031874]
[1721360648894,0.151,64439.0,64438.0,0.95431874]
[1721360649093,0.151,64439.0,64438.0,0.96831874]
[1721360649295,0.151,64439.0,64438.0,1.27869374]
[1721360653683,0.15,64439.0,64438.0,1.26469374]
[1721360653882,0.151,64439.0,64438.0,1.27869374]
[1721360654155,0.151,64439.0,64438.0,0.96831874]
[1721360654514,0.151,64439.0,64438.0,1.27869374]
[1721360655409,0.151,64439.0,64438.0,1.25469374]
[1721360655630,0.151,64439.0,64438.0,1.30118852]
[1721360655831,0.15,64439.0,64438.0,1.28718852]
[1721360656060,0.15,64439.0,64438.0,1.27318852]
[1721360656247,0.151,64439.0,64438.0,1.30118852]
[1721360656617,0.151,64439.0,64438.0,1.28718852]
[1721360656618,0.15,64439.0,64438.0,1.28718852]
[1721360656828,0.15,64439.0,64438.0,0.95381352]
[1721360657205,0.151,64439.0,64438.0,1.27818852]
[1721360658122,0.151,64439.0,64438.0,0.96781352]
[1721360658309,0.151,64439.0,64438.0,0.95381352]
[1721360658505,0.15,64439.0,64438.0,0.93981352]
[1721360658752,0.15,64439.0,64438.0,0.95381352]
[1721360658950,0.15,64439.0,64438.0,0.96781352]
[1721360658951,0.151,64439.0,64438.0,0.96781352]
[1721360659353,0.15,64439.0,64438.0,0.95381352]
[1721360659554,0.15,64439.0,64438.0,1.25018852]
[1721360659799,0.151,64439.0,64438.0,1.26418852]
[1721360659968,0.151,64439.0,64438.0,1.27818852]
[1721360660166,0.15,64439.0,64438.0,1.25018852]
[1721360660569,0.151,64439.0,64438.0,1.26418852]
[1721360661813,0.151,64439.0,64438.0,0.96781352]
[1721360661978,0.15,64439.0,64438.0,0.93981352]
[1721360662144,0.15,64439.0,64438.0,0.95381352]
[1721360662378,0.151,64439.0,64438.0,1.27818852]
[1721360662825,0.151,64439.0,64438.0,0.96781352]
[1721360663769,0.151,64439.0,64438.0,0.64794374]
[1721360663999,0.2322,64439.0,64438.0,0.33756874]
[1721360664382,0.2322,64439.0,64438.0,0.18238174]
[1721360666257,1.068427,64439.0,64438.0,0.028]
[1721360667065,0.310396,64434.0,64427.0,0.002794]
[1721360667241,0.155201,64433.0,64428.0,0.15438174]
[1721360667584,0.155201,64433.0,64429.0,0.002794]
[1721360667809,0.155201,64433.0,64430.0,0.15438174]
[1721360668927,0.155201,64433.0,64430.0,0.16038174]
[1721360669103,0.156201,64433.0,64430.0,0.16638174]
[1721360669311,0.001,64433.0,64430.0,0.16638174]
[1721360669476,0.155197,64434.0,64431.0,0.002794]
[1721360669674,0.155197,64434.0,64432.0,0.15438174]
[1721360669896,0.2915,64439.0,64433.0,0.310398]
[1721360670143,0.446687,64439.0,64434.0,0.15438174]
[1721360670397,0.446687,64439.0,64434.0,0.30957674]
[1721360670606,0.446687,64439.0,64435.0,0.002794]
[1721360670809,0.15,64439.0,64436.0,0.30957374]
[1721360671266,0.15,64439.0,64437.0,0.002794]
[1721360671431,0.155187,64438.0,64436.0,0.15438174]
[1721360671970,0.46557,64437.0,64436.0,0.15438174]
[1721360672332,0.15,64439.0,64436.0,0.15438174]
[1721360672540,0.15,64439.0,64437.0,0.002794]
[1721360672541,0.155188,64438.0,64437.0,0.002794]
[1721360673134,0.46557,64437.0,64436.0,0.15438174]
[1721360673368,0.15519,64437.0,64436.0,0.15638174]
[1721360673574,0.15519,64437.0,64436.0,0.15538174]
[1721360674041,1.22843,64437.0,64436.0,0.001]
[1721360674249,0.29729,64437.0,64436.0,0.001]
[1721360674653,0.29729,64437.0,64431.0,0.155203]
[1721360674654,0.155193,64436.0,64432.0,0.002794]
[1721360674831,0.155193,64436.0,64433.0,0.15438174]
[1721360675609,0.155197,64435.0,64433.0,0.15438174]
[1721360675987,0.002,64436.0,64433.0,0.15438174]
[1721360676429,0.15,64439.0,64435.0,0.155195]
[1721360676584,0.305185,64439.0,64436.0,0.15717574]
[1721360676785,0.305185,64439.0,64436.0,0.15438174]
[1721360677202,0.15,64439.0,64436.0,0.30957374]
[1721360677413,0.15,64439.0,64438.0,0.155187]
[1721360677614,0.15,64439.0,64438.0,0.93031874]
[1721360678730,0.15,64439.0,64438.0,1.38659374]
[1721360678931,0.15,64439.0,64438.0,1.39159374]
[1721360679391,0.00083056,64446.0,64445.0,0.465513]
[1721360679606,0.00083056,64446.0,64445.0,0.61989474]
[1721360680724,0.00083056,64446.0,64445.0,0.93023674]
[1721360681371,0.00383056,64446.0,64445.0,0.93023674]
[1721360681575,0.00483056,64446.0,64445.0,0.93023674]
[1721360682553,0.00183056,64446.0,64445.0,0.93023674]
[1721360682803,0.00183056,64446.0,64445.0,0.93323674]
[1721360682933,0.00083056,64446.0,64445.0,0.93323674]
[1721360683142,0.00083056,64446.0,64445.0,0.94223674]
[1721360684141,0.00083056,64446.0,64445.0,0.93923674]
[1721360684433,0.00083056,64446.0,64445.0,0.94878509]
[1721360684660,0.00183056,64446.0,64445.0,0.95678509]
[1721360685031,0.00083056,64446.0,64445.0,0.93978509]
[1721360685389,0.00183056,64446.0,64445.0,0.94778509]
[1721360685574,0.00183056,64446.0,64445.0,0.95678509]
[1721360686004,0.00083056,64446.0,64445.0,0.94878509]
[1721360686116,0.00083056,64446.0,64445.0,0.94778509]
[1721360686317,0.00183056,64446.0,64445.0,0.94778509]
[1721360686516,0.00183056,64446.0,64445.0,0.95678509]
[1721360686730,0.00183056,64446.0,64445.0,0.94778509]
[1721360686943,0.00183056,64446.0,64445.0,0.95678509]
[1721360687343,0.00183056,64446.0,64445.0,1.26712709]
[1721360687610,0.00083056,64446.0,64445.0,0.94878509]
[1721360687965,0.00183056,64446.0,64445.0,0.64644309]
[1721360688368,0.00083056,64446.0,64445.0,0.62944309]
[1721360688547,0.00083056,64446.0,64445.0,0.62889474]
[1721360688782,0.00183056,64446.0,64445.0,0.31955274]
[1721360688992,0.00183056,64446.0,64445.0,0.16438174]
[1721360689194,0.00083056,64446.0,64445.0,0.16438174]
[1721360689400,0.00083056,64446.0,64445.0,0.31955274]
[1721360689601,0.00083056,64446.0,64445.0,0.17338174]
[1721360689602,0.00183056,64446.0,64445.0,0.17338174]
[1721360689841,0.00183056,64446.0,64445.0,0.32855274]
[1721360690051,0.00183056,64446.0,64445.0,0.31855274]
[1721360690432,0.00183056,64446.0,64445.0,0.32755274]
[1721360690873,0.21799856,64446.0,64445.0,0.17238174]
[1721360691085,0.91907256,64446.0,64445.0,0.009]
[1721360691292,0.60873556,64446.0,64445.0,0.017]
[1721360691487,0.60973556,64446.0,64445.0,0.017]
[1721360691902,0.92007256,64446.0,64445.0,0.017]
[1721360692108,0.92007256,64446.0,64436.0,0.002794]
[1721360692109,0.15518,64442.0,64436.0,0.002794]
[1721360692283,0.15518,64442.0,64437.0,0.15438174]
[1721360692483,0.15518,64442.0,64437.0,0.30957174]
[1721360692683,0.155174,64444.0,64438.0,0.155187]
[1721360692886,0.155174,64444.0,64439.0,0.15438174]
[1721360693050,0.155174,64444.0,64439.0,0.30956674]
[1721360693253,0.45356756,64446.0,64439.0,0.30956674]
[1721360693254,0.29839956,64446.0,64441.0,0.155179]
[1721360693458,0.155172,64445.0,64442.0,0.15438174]
[1721360694075,0.14323056,64446.0,64442.0,0.30955874]
[1721360694444,0.29839956,64446.0,64442.0,0.30955874]
[1721360695131,0.14323056,64446.0,64442.0,0.30955874]
[1721360695466,0.00083056,64446.0,64442.0,0.31455874]
[1721360695638,0.155171,64445.0,64442.0,0.15938174]
[1721360695841,0.155175,64443.0,64442.0,0.15838174]
[1721360695995,0.155175,64443.0,64442.0,0.16138174]
[1721360696196,0.465526,64443.0,64442.0,0.007]
[1721360696481,0.465526,64443.0,64442.0,0.003]
[1721360696676,0.915177,64443.0,64442.0,0.003]
[1721360696876,0.604826,64443.0,64442.0,0.003]
[1721360697253,0.155181,64441.0,64435.0,0.155193]
[1721360697453,0.155181,64441.0,64436.0,0.15438174]
[1721360697859,0.155196,64435.0,64430.0,0.155205]
[1721360698062,0.155196,64435.0,64431.0,0.15438174]
[1721360698240,0.449651,64443.0,64431.0,0.15438174]
[1721360698241,0.1552,64433.0,64431.0,0.15438174]
[1721360698448,0.310382,64437.0,64431.0,0.15438174]
[1721360698645,0.155197,64435.0,64431.0,0.15438174]
[1721360698845,0.155197,64435.0,64431.0,0.15529474]
[1721360699049,0.310386,64436.0,64431.0,0.15529474]
[1721360699249,0.1552,64433.0,64431.0,0.15529474]
[1721360699650,0.1552,64433.0,64431.0,0.16929474]
[1721360699852,0.001,64435.0,64432.0,0.07717479]
[1721360700079,0.001,64435.0,64434.0,0.465592]
[1721360700351,0.04649379,64445.0,64434.0,0.54195153]
[1721360700541,0.00083056,64446.0,64445.0,0.775855]
[1721360700753,0.00083056,64446.0,64445.0,0.30955274]
[1721360701541,0.00083056,64446.0,64445.0,0.61989474]
[1721360702165,0.00083056,64446.0,64445.0,0.15438174]
[1721360702364,0.00083056,64446.0,64445.0,0.15738174]
[1721360702799,0.15599856,64446.0,64445.0,0.15738174]
[1721360703013,0.00083056,64446.0,64445.0,0.16138174]
[1721360704194,0.00083056,64446.0,64445.0,0.62689474]
[1721360705194,0.00083056,64446.0,64445.0,0.31655274]
[1721360705588,0.00083056,64446.0,64445.0,0.62689474]
[1721360709135,0.00083056,64446.0,64445.0,0.16138174]
[1721360710015,0.15599856,64446.0,64445.0,0.16138174]
[1721360711493,0.00083056,64446.0,64445.0,1.01403674]
[1721360711695,0.00083056,64446.0,64445.0,1.07483674]
[1721360712276,0.00083056,64446.0,64445.0,0.76449474]
[1721360712654,0.00083056,64446.0,64445.0,0.62689474]
[1721360713246,0.00083056,64446.0,64445.0,0.9467351]
[1721360715703,0.00083056,64446.0,64445.0,0.62689474]
[1721360715910,0.06203056,64446.0,64445.0,0.16138174]
[1721360716741,0.06203056,64446.0,64445.0,0.31655274]
[1721360716950,0.00083056,64446.0,64445.0,0.47172374]
[1721360717123,0.00083056,64446.0,64445.0,0.62689474]
[1721360717529,0.00083056,64446.0,64445.0,0.93723674]
[1721360717826,0.00083056,64446.0,64445.0,1.24757874]
[1721360718226,0.00083056,64446.0,64445.0,0.93723674]
[1721360719275,0.00083056,64446.0,64445.0,0.31655274]
[1721360719675,0.00083056,64446.0,64445.0,0.62689474]
[1721360723304,0.00083056,64446.0,64445.0,0.93723674]
[1721360723519,0.00083056,64446.0,64445.0,1.38797874]
[1721360724143,0.00083056,64446.0,64445.0,1.51684576]
[1721360724323,0.00083056,64446.0,64445.0,1.60574576]
[1721360724518,0.00083056,64446.0,64445.0,1.47387874]
[1721360725018,0.00083056,64446.0,64445.0,1.25657874]
[1721360725019,0.00183056,64446.0,64445.0,1.25657874]
[1721360725423,0.00183056,64446.0,64445.0,1.34147874]
[1721360725645,0.00183056,64446.0,64445.0,1.26557874]
[1721360726208,0.00183056,64446.0,64445.0,1.27957874]
[1721360726519,0.00183056,64446.0,64445.0,1.26757874]
[1721360726520,0.00083056,64446.0,64445.0,1.26757874]
[1721360726953,0.00183056,64446.0,64445.0,1.28157874]
[1721360727159,0.00183056,64446.0,64445.0,1.25457874]
[1721360727365,0.00083056,64446.0,64445.0,1.24057874]
[1721360727858,0.00183056,64446.0,64445.0,1.25357874]
[1721360728280,0.00083056,64446.0,64445.0,1.24057874]
[1721360728680,0.00083056,64446.0,64445.0,1.25457874]
[1721360728986,0.00083056,64446.0,64445.0,1.24057874]
[1721360729338,0.00083056,64446.0,64445.0,1.25457874]
[1721360730137,0.00083056,64446.0,64445.0,0.63389474]
[1721360730514,0.00183056,64446.0,64445.0,0.33755274]
[1721360730746,0.08253056,64446.0,64445.0,0.33755274]
[1721360730924,0.08153056,64446.0,64445.0,0.32355274]
[1721360731335,0.08153056,64446.0,64445.0,0.014]
[1721360731508,0.14303056,64446.0,64445.0,0.028]
[1721360731909,0.14203056,64446.0,64445.0,0.028]
[1721360732309,0.14303056,64446.0,64445.0,0.042]
[1721360732594,0.14303056,64446.0,64445.0,0.056]
[1721360733229,0.14303056,64446.0,64445.0,0.21038174]
[1721360733439,0.00183056,64446.0,64445.0,1.12383674]
[1721360733760,0.00183056,64446.0,64445.0,1.43417874]
[1721360734734,0.00183056,64446.0,64445.0,1.44337544]
[1721360735756,0.00183056,64446.0,64445.0,1.30577544]
[1721360736157,0.00183056,64446.0,64445.0,0.99543344]
[1721360738483,0.00183056,64446.0,64445.0,1.30577544]
[1721360738690,0.00183056,64446.0,64445.0,0.99543344]
[1721360738890,0.00183056,64446.0,64445.0,1.30577544]
[1721360739346,0.00183056,64446.0,64445.0,0.99543344]
[1721360739755,0.00183056,64446.0,64445.0,1.30577544]
[1721360740536,0.00183056,64446.0,64445.0,0.99543344]
[1721360741343,0.00183056,64446.0,64445.0,1.09543344]
[1721360744098,0.00183056,64446.0,64445.0,1.08623674]
[1721360747659,0.00183056,64446.0,64445.0,0.056]
[1721360748980,0.99300947,64446.0,64445.0,0.056]
[1721360749190,0.92317256,64446.0,64445.0,0.056]
[1721360749906,0.92217256,64446.0,64445.0,0.014]
[1721360750314,0.92317256,64446.0,64445.0,0.014]
[1721360750727,1.01526842,64446.0,64445.0,0.014]
[1721360751137,1.33060542,64446.0,64445.0,0.014]
[1721360751339,1.54624087,64446.0,64445.0,0.014]
[1721360751769,1.3918913,64446.0,64445.0,0.014]
[1721360751968,1.3928913,64446.0,64445.0,0.015]
[1721360752168,1.3918913,64446.0,64445.0,0.014]
[1721360752573,1.3928913,64446.0,64445.0,0.014]
[1721360752937,1.3918913,64446.0,64445.0,0.014]
[1721360753083,1.54224087,64446.0,64445.0,0.014]
[1721360753284,1.3878913,64446.0,64445.0,0.014]
[1721360753468,1.3828913,64446.0,64445.0,0.014]
[1721360753810,1.3838913,64446.0,64445.0,0.014]
[1721360754317,1.3828913,64446.0,64445.0,0.014]
[1721360754536,1.7432283,64446.0,64445.0,0.014]
[1721360754740,1.7432283,64446.0,64431.0,0.000913]
[1721360754741,0.84221,64432.0,64431.0,0.000913]
[1721360754952,1.37675923,64432.0,64431.0,0.000913]
[1721360755143,1.30699574,64432.0,64431.0,0.000913]
[1721360755321,1.61739974,64432.0,64431.0,0.000913]
[1721360755679,1.73359964,64432.0,64431.0,0.000913]
[1721360755880,1.149199,64421.0,64420.0,0.000913]
[1721360756106,1.230899,64421.0,64420.0,0.000913]
[1721360756303,0.299528,64421.0,64420.0,0.000913]
[1721360756685,0.0626,64426.0,64420.0,0.311375]
[1721360756930,0.001,64432.0,64431.0,0.001]
[1721360756931,0.0726,64432.0,64431.0,0.001]
[1721360757183,0.0716,64432.0,64431.0,0.001]
[1721360757427,0.0817,64433.0,64428.0,0.31042]
[1721360757428,0.0626,64437.0,64428.0,0.31042]
[1721360757628,0.155199,64434.0,64428.0,0.155211]
[1721360758033,0.310389,64436.0,64430.0,0.155206]
[1721360758371,0.310389,64436.0,64424.0,0.310443]
[1721360758521,0.155207,64430.0,64425.0,0.155218]
[1721360758736,0.155216,64427.0,64421.0,0.155227]
[1721360759069,0.155227,64422.0,64420.0,0.000913]
[1721360759432,0.217828,64421.0,64420.0,0.000913]
[1721360759848,0.920442,64421.0,64420.0,0.000913]
[1721360760420,0.920442,64421.0,64420.0,0.012913]
[1721360760850,0.921442,64421.0,64420.0,0.024913]
[1721360761056,1.231899,64421.0,64420.0,0.024913]
[1721360761271,0.465736,64414.0,64413.0,0.002794]
[1721360761515,0.92054,64413.0,64412.0,0.002794]
[1721360761709,0.465751,64412.0,64411.0,0.002]
[1721360762343,1.086753,64412.0,64411.0,0.002]
[1721360762551,1.147553,64412.0,64411.0,0.002]
[1721360762728,1.227853,64412.0,64411.0,0.002]
[1721360762935,1.38223474,64412.0,64411.0,0.002]
[1721360763133,1.69273574,64412.0,64411.0,0.002]
[1721360763364,1.227853,64412.0,64411.0,0.002]
[1721360763938,1.228853,64412.0,64411.0,0.003]
[1721360764604,1.3507383,64412.0,64411.0,0.002]
[1721360765001,1.3557383,64412.0,64411.0,0.002]
[1721360765204,1.3547383,64412.0,64411.0,0.002]
[1721360765435,1.50912004,64412.0,64411.0,0.002]
[1721360765628,2.11882104,64412.0,64411.0,0.002]
[1721360765788,0.836892,64392.0,64391.0,0.002]
[1721360765972,0.914192,64392.0,64391.0,0.002]
[1721360766573,0.10096525,64406.0,64391.0,0.002]
[1721360766773,0.0604,64411.0,64401.0,0.310551]
[1721360766996,0.15526,64408.0,64402.0,0.155273]
[1721360767197,0.310511,64410.0,64400.0,0.155278]
[1721360767399,0.0604,64411.0,64395.0,0.31058]
[1721360767603,0.155273,64403.0,64396.0,0.002794]
[1721360767801,0.310535,64405.0,64398.0,0.155282]
[1721360768001,0.003,64406.0,64391.0,0.312599]
[1721360768002,0.155284,64399.0,64391.0,0.312599]
[1721360768297,0.0615,64402.0,64392.0,0.002794]
[1721360768497,0.155298,64392.0,64391.0,0.002]
[1721360768706,0.465895,64392.0,64391.0,0.002]
[1721360769612,0.610295,64392.0,64391.0,0.008]
[1721360769755,0.920892,64392.0,64391.0,0.002]
[1721360769999,1.07624157,64392.0,64391.0,0.012]
[1721360771068,1.54222031,64392.0,64391.0,0.013]
[1721360771752,1.38687074,64392.0,64391.0,0.012]
[1721360771978,1.38587074,64392.0,64391.0,0.002]
[1721360772260,1.39187074,64392.0,64391.0,0.002]
[1721360772952,1.40587074,64392.0,64391.0,0.003]
[1721360773194,1.56022031,64392.0,64391.0,0.003]
[1721360773414,1.40287074,64392.0,64391.0,0.003]
[1721360773855,1.41687074,64392.0,64391.0,0.003]
[1721360774538,1.72746774,64392.0,64391.0,0.003]
[1721360774779,1.75046774,64392.0,64391.0,0.003]
[1721360775672,1.73346774,64392.0,64391.0,0.002]
[1721360775896,1.88781731,64392.0,64391.0,0.002]
[1721360776165,1.95181731,64392.0,64391.0,0.003]
[1721360776659,2.03781731,64392.0,64391.0,0.003]
[1721360776875,1.89019214,64392.0,64391.0,0.003]
[1721360777073,1.84849269,64392.0,64391.0,0.003]
[1721360777280,1.83346774,64392.0,64391.0,0.003]
[1721360777478,1.87600531,64392.0,64391.0,0.003]
[1721360777693,1.87703026,64392.0,64391.0,0.002]
[1721360777903,2.00163048,64392.0,64391.0,0.003]
[1721360778120,2.05163048,64392.0,64391.0,0.003]
[1721360778922,2.09435488,64392.0,64391.0,0.003]
[1721360779132,2.05163048,64392.0,64391.0,0.003]
[1721360779695,1.87600531,64392.0,64391.0,0.003]
[1721360779909,0.62410817,64392.0,64391.0,0.003]
[1721360780081,0.79248991,64392.0,64391.0,0.003]
[1721360780299,1.10308691,64392.0,64391.0,0.003]
[1721360780663,1.41368391,64392.0,64391.0,0.003]
[1721360781103,1.5550523,64392.0,64391.0,0.003]
[1721360781357,1.5270523,64392.0,64391.0,0.002]
[1721360781558,1.39968391,64392.0,64391.0,0.002]
[1721360781842,1.39968391,64392.0,64391.0,0.003]
[1721360781843,1.41368391,64392.0,64391.0,0.003]
[1721360782015,1.41368391,64392.0,64391.0,0.002]
[1721360782435,1.42768391,64392.0,64391.0,0.003]
[1721360782637,1.58203348,64392.0,64391.0,0.003]
[1721360783309,1.42768391,64392.0,64391.0,0.003]
[1721360783487,1.41368391,64392.0,64391.0,0.003]
[1721360783892,1.42768391,64392.0,64391.0,0.003]
[1721360788305,1.78828091,64392.0,64391.0,0.003]
[1721360788595,1.55068391,64392.0,64391.0,0.003]
[1721360788806,1.63140701,64392.0,64391.0,0.002]
[1721360789006,1.63140701,64392.0,64391.0,0.003]
[1721360789206,1.58140701,64392.0,64391.0,0.003]
[1721360789992,1.89200401,64392.0,64391.0,0.003]
[1721360790191,1.95600401,64392.0,64391.0,0.003]
[1721360790747,1.89200401,64392.0,64391.0,0.003]
[1721360790854,1.90600401,64392.0,64391.0,0.003]
[1721360791968,1.84728091,64392.0,64391.0,0.003]
[1721360792418,1.5839279,64392.0,64391.0,0.003]
[1721360792619,1.51368391,64392.0,64391.0,0.003]
[1721360794289,1.53668391,64392.0,64391.0,0.003]
[1721360795137,1.54583591,64392.0,64391.0,0.003]
[1721360795802,1.65466455,64392.0,64391.0,0.003]
[1721360796504,1.65466455,64392.0,64391.0,0.003924]
[1721360796708,1.54583591,64392.0,64391.0,0.003924]